bitfinex-derivatives/quotes_BTCF0:USTF0_20251219
["timestamp","ask_amount","ask_price","bid_price","bid_amount"]
[1766135278256,0.02552436,88052.0,88040.0,0.00572]
[1766135278449,0.00572,88053.0,88040.0,0.00572]
[1766135278651,0.02552436,88052.0,88040.0,0.00572]
[1766135278949,0.00572,88053.0,88040.0,0.00572]
[1766135279252,0.0113644,88043.0,88028.0,0.00017039]
[1766135279452,0.29057551,88050.0,88028.0,0.00017039]
[1766135279453,0.0113646,88041.0,88028.0,3.9e-07]
[1766135279658,0.00572,88042.0,88028.0,3.9e-07]
[1766135279845,0.00227124,88058.0,88028.0,3.9e-07]
[1766135280051,0.0113628,88055.0,88036.0,0.0113652]
[1766135280252,0.0255319,88054.0,88036.0,0.0113652]
[1766135280560,0.0255319,88053.0,88036.0,0.0113652]
[1766135281152,0.00572,88052.0,88030.0,0.29057551]
[1766135281354,0.0113634,88050.0,88032.0,0.0113657]
[1766135281660,0.0255319,88049.0,88031.0,0.0113658]
[1766135282953,0.0255319,88048.0,88031.0,0.0113658]
[1766135283152,0.00572,88052.0,88031.0,0.0113658]
[1766135283354,0.02555171,88051.0,88031.0,0.0113658]
[1766135283553,0.02555171,88050.0,88031.0,0.0113658]
[1766135283761,0.02555171,88049.0,88031.0,0.0113658]
[1766135284063,0.02555171,88048.0,88031.0,0.0113658]
[1766135284363,0.00017,88054.0,88028.0,3.9e-07]
[1766135284364,0.00017,88054.0,88034.0,0.0113654]
[1766135284554,0.03127477,88053.0,88034.0,0.0113654]
[1766135284861,0.03127477,88052.0,88041.0,0.0113644]
[1766135285249,0.02555477,88051.0,88041.0,0.0113644]
[1766135285447,0.02555477,88050.0,88041.0,0.0113644]
[1766135285649,0.00572,88052.0,88041.0,0.0113644]
[1766135285850,0.0254643,88051.0,88030.0,0.29057551]
[1766135286057,0.0311843,88050.0,88041.0,0.0113644]
[1766135286253,0.00572,88050.0,88041.0,0.0113644]
[1766135287062,0.00476,88049.0,88041.0,0.0113644]
[1766135288366,0.00476,88049.0,88037.0,0.011365]
[1766135288567,0.011364,88046.0,88028.0,3.9e-07]
[1766135288863,0.00476,88049.0,88028.0,0.01136659]
[1766135289071,0.02546856,88048.0,88028.0,0.01136659]
[1766135289266,0.02546856,88047.0,88028.0,0.01136659]
[1766135289566,0.02546856,88046.0,88028.0,0.01136659]
[1766135289771,0.00476,88049.0,88028.0,0.01136659]
[1766135289967,0.0254681,88048.0,88028.0,0.01136659]
[1766135290176,0.0254681,88047.0,88028.0,0.01136659]
[1766135290362,0.011364,88045.0,88028.0,3.9e-07]
[1766135290559,0.0113647,88040.0,88028.0,3.9e-07]
[1766135290763,0.00572,88039.0,88028.0,3.9e-07]
[1766135294771,0.00572,88039.0,88028.0,0.01136659]
[1766135295665,0.011363,88053.0,88034.0,0.0113654]
[1766135295869,0.02546619,88052.0,88034.0,0.0113654]
[1766135296075,0.03118619,88051.0,88037.0,0.011365]
[1766135296276,0.02546619,88050.0,88037.0,0.011365]
[1766135296476,0.00572,88050.0,88037.0,0.011365]
[1766135300370,0.00468,88052.0,88042.0,0.0113643]
[1766135300570,0.00468,88052.0,88031.0,0.00572]
[1766135300571,0.00017,88054.0,88040.0,0.29057551]
[1766135300775,0.00227124,88058.0,88046.0,0.0113638]
[1766135303477,0.00227124,88058.0,88040.0,0.29629551]
[1766135303974,0.00227124,88058.0,88045.0,0.0113639]
[1766135304675,0.00227124,88058.0,88044.0,0.0113641]
[1766135305472,0.00227124,88058.0,88040.0,0.29629551]
[1766135305473,0.00227124,88058.0,88046.0,0.0113637]
[1766135305677,0.00227124,88058.0,88044.0,0.0113641]
[1766135308376,0.00227124,88058.0,88040.0,0.0170846]
[1766135308579,0.00227124,88058.0,88040.0,0.00572]
[1766135309064,0.00227124,88058.0,88036.0,0.0113651]
[1766135309379,0.00227124,88058.0,88032.0,0.00572]
[1766135309380,0.0113626,88056.0,88032.0,0.00572]
[1766135309873,0.0170825,88057.0,88033.0,0.0113655]
[1766135310476,0.0113629,88054.0,88032.0,0.00572]
[1766135310671,0.00572,88057.0,88032.0,0.00572]
[1766135310672,0.29057551,88050.0,88032.0,0.00572]
[1766135310875,0.0113639,88046.0,88028.0,3.9e-07]
[1766135311079,0.30194021,88040.0,88028.0,3.9e-07]
[1766135311680,0.0113652,88036.0,88028.0,3.9e-07]
[1766135311871,0.0170854,88035.0,88028.0,3.9e-07]
[1766135316075,0.00572,88035.0,88028.0,3.9e-07]
[1766135319981,0.0113647,88040.0,88028.0,3.9e-07]
[1766135320186,0.00572,88039.0,88028.0,3.9e-07]
[1766135320591,0.0170848,88039.0,88028.0,3.9e-07]
[1766135321988,0.0113654,88035.0,88028.0,3.9e-07]
[1766135322801,0.0170849,88039.0,88028.0,3.9e-07]
[1766135325104,0.0113652,88036.0,88028.0,3.9e-07]
[1766135326505,0.0113656,88033.0,88028.0,3.9e-07]
[1766135326805,0.00572,88032.0,88028.0,3.9e-07]
[1766135332094,0.0113658,88031.0,88028.0,3.9e-07]
[1766135332300,0.0113664,88027.0,88006.0,0.011369]
[1766135332601,0.0113664,88027.0,88003.0,2.38712]
[1766135332602,0.06125936,88056.0,88003.0,2.38712]
[1766135332804,0.02535471,88054.0,88037.0,0.011365]
[1766135333004,0.02535471,88053.0,88042.0,0.0113643]
[1766135333204,0.00572,88053.0,88042.0,0.0113643]
[1766135333407,0.00332,88054.0,88045.0,0.0113639]
[1766135333607,0.00432,88054.0,88041.0,0.0113645]
[1766135335704,0.00432,88054.0,88039.0,0.00017039]
[1766135337010,0.0113614,88066.0,88040.0,0.29053294]
[1766135337206,0.00248,88053.0,88040.0,0.29053294]
[1766135338313,0.00248,88053.0,88043.0,0.0113642]
[1766135339606,0.00248,88053.0,88040.0,0.29053294]
[1766135340915,0.00248,88053.0,88039.0,0.00017039]
[1766135341116,0.00248,88053.0,88040.0,0.29053294]
[1766135341318,0.00248,88053.0,88041.0,0.0113645]
[1766135341715,0.00248,88053.0,88041.0,0.0170845]
[1766135342012,0.29053294,88051.0,88020.0,0.29053294]
[1766135342218,0.0113636,88049.0,88027.0,0.0113662]
[1766135342418,0.0113636,88049.0,88030.0,0.29053294]
[1766135342815,0.0113614,88066.0,88042.0,0.0113643]
[1766135343012,0.00264,88057.0,88042.0,0.0113643]
[1766135343511,0.00264,88057.0,88038.0,0.0170848]
[1766135343711,0.0140026,88057.0,88040.0,0.29053294]
[1766135343911,0.0140026,88057.0,88038.0,0.00572]
[1766135344304,0.0140026,88057.0,88040.0,0.29053294]
[1766135345221,0.02538607,88056.0,88040.0,0.29053294]
[1766135345418,0.02538607,88055.0,88040.0,0.29053294]
[1766135345619,0.00264,88057.0,88040.0,0.29053294]
[1766135345810,0.02538564,88056.0,88040.0,0.29053294]
[1766135346011,0.02538564,88055.0,88040.0,0.29053294]
[1766135346221,0.02538564,88054.0,88038.0,0.00572]
[1766135346420,0.00264,88057.0,88040.0,0.29053294]
[1766135346612,0.0113631,88052.0,88040.0,0.29053294]
[1766135346806,0.0113627,88056.0,88040.0,0.29053294]
[1766135347012,0.0253852,88055.0,88040.0,0.29053294]
[1766135347222,0.0253852,88054.0,88040.0,0.29053294]
[1766135347521,0.0113627,88056.0,88040.0,0.29053294]
[1766135347721,0.02538407,88055.0,88040.0,0.29053294]
[1766135348021,0.02538407,88054.0,88040.0,0.29053294]
[1766135348321,0.0113627,88056.0,88040.0,0.29053294]
[1766135348522,0.0253836,88055.0,88040.0,0.29053294]
[1766135348821,0.0253836,88054.0,88040.0,0.29053294]
[1766135349022,0.0113627,88056.0,88040.0,0.29053294]
[1766135349212,0.0253836,88055.0,88040.0,0.29053294]
[1766135349411,0.0253836,88054.0,88040.0,0.29053294]
[1766135349612,0.0113627,88056.0,88040.0,0.29053294]
[1766135349812,0.02538329,88055.0,88040.0,0.29053294]
[1766135350012,0.02538329,88054.0,88040.0,0.29053294]
[1766135350221,0.0113627,88056.0,88040.0,0.29053294]
[1766135350422,0.02538332,88055.0,88040.0,0.29053294]
[1766135350720,0.02538332,88054.0,88040.0,0.29053294]
[1766135350920,0.0113627,88056.0,88040.0,0.29053294]
[1766135351118,0.02538332,88055.0,88040.0,0.29053294]
[1766135351319,0.02538332,88054.0,88040.0,0.29053294]
[1766135351520,0.0113627,88056.0,88040.0,0.29053294]
[1766135351720,0.02538373,88055.0,88040.0,0.29053294]
[1766135351921,0.02538373,88054.0,88040.0,0.29053294]
[1766135352117,0.0113627,88056.0,88040.0,0.29053294]
[1766135352319,0.02538453,88055.0,88040.0,0.29053294]
[1766135352623,0.0113627,88056.0,88040.0,0.29053294]
[1766135353022,0.02538453,88055.0,88040.0,0.29053294]
[1766135353231,0.00264,88057.0,88040.0,0.29053294]
[1766135353421,0.02538562,88056.0,88040.0,0.29053294]
[1766135353626,0.02538562,88055.0,88040.0,0.29053294]
[1766135353819,0.0140025,88057.0,88040.0,0.29053294]
[1766135354020,0.0113627,88055.0,88040.0,0.29053294]
[1766135354222,0.02538562,88054.0,88040.0,0.29053294]
[1766135355816,0.00264,88057.0,88040.0,0.29053294]
[1766135356016,0.02538955,88056.0,88040.0,0.29053294]
[1766135356318,0.02538955,88055.0,88040.0,0.29053294]
[1766135356523,0.02538955,88054.0,88040.0,0.29053294]
[1766135356727,0.02538955,88053.0,88039.0,0.00572]
[1766135356924,0.00572,88052.0,88040.0,0.29053294]
[1766135358229,0.0113632,88051.0,88040.0,0.29053294]
[1766135360423,0.00572,88052.0,88040.0,0.29053294]
[1766135361230,0.0113636,88049.0,88032.0,0.00572]
[1766135361422,0.0113632,88051.0,88039.0,0.29053294]
[1766135361931,0.0113632,88051.0,88033.0,0.0113655]
[1766135362128,0.00572,88052.0,88033.0,0.0113655]
[1766135362725,0.0113632,88051.0,88033.0,0.0113655]
[1766135363131,0.00572,88050.0,88040.0,0.29053294]
[1766135363633,1.24e-06,88058.0,88041.0,0.00572]
[1766135363829,0.00572,88061.0,88049.0,0.0113634]
[1766135364029,0.00572,88061.0,88049.0,0.0170834]
[1766135364030,0.00284,88061.0,88049.0,0.0170834]
[1766135364532,0.00284,88061.0,88049.0,0.00572]
[1766135367631,0.0113636,88048.0,88030.0,0.29053294]
[1766135367848,0.0113636,88048.0,88031.0,0.00572]
[1766135368138,0.29053294,88041.0,88018.0,0.06117656]
[1766135368329,0.011365,88038.0,88014.0,0.011368]
[1766135368520,0.011365,88038.0,88015.0,0.00572]
[1766135368726,0.011365,88038.0,88020.0,0.29053294]
[1766135369030,0.011365,88038.0,88020.0,0.29070333]
[1766135369031,0.01153539,88038.0,88020.0,0.29070333]
[1766135369435,0.01153539,88038.0,88020.0,0.29642333]
[1766135370840,0.00017039,88038.0,88020.0,0.00017039]
[1766135371032,0.0113661,88029.0,88020.0,0.00017039]
[1766135371232,0.00572,88028.0,88013.0,0.00572]
[1766135371437,0.0113664,88027.0,88007.0,0.00572]
[1766135372143,0.0113668,88023.0,88018.0,8e-08]
[1766135374243,0.00572,88022.0,88018.0,8e-08]
[1766135381145,0.00436,88021.0,88018.0,8e-08]
[1766135381444,0.00384,88028.0,88018.0,8e-08]
[1766135381640,0.00344,88028.0,88018.0,0.29053302]
[1766135381945,0.00324,88030.0,88018.0,0.30190052]
[1766135382142,0.00017039,88038.0,88021.0,0.0113671]
[1766135382341,0.0016,88037.0,88028.0,0.29053294]
[1766135382548,0.0016,88037.0,88024.0,0.0113666]
[1766135382854,0.0024,88036.0,88027.0,0.29053294]
[1766135383040,0.0028,88035.0,88027.0,0.29053294]
[1766135383236,0.00017039,88038.0,88027.0,0.29053294]
[1766135383237,0.0028,88034.0,88027.0,0.29053294]
[1766135384048,0.0028,88034.0,88024.0,0.30189954]
[1766135385437,0.00144,88039.0,88024.0,0.30189954]
[1766135385740,0.00144,88039.0,88030.0,0.29053294]
[1766135386740,0.29053294,88060.0,88030.0,0.29053294]
[1766135386741,0.0113631,88053.0,88033.0,0.29053294]
[1766135386944,0.0113632,88051.0,88040.0,0.29053294]
[1766135387144,0.00356,88050.0,88040.0,0.29053294]
[1766135387336,0.00356,88050.0,88031.0,0.00572]
[1766135387845,0.00356,88050.0,88032.0,0.01153599]
[1766135388044,0.06267237,88074.0,88032.0,0.01153599]
[1766135388045,0.03237852,88078.0,88040.0,0.29053294]
[1766135388246,0.29053294,88070.0,88050.0,0.29070333]
[1766135388448,0.0113617,88063.0,88050.0,0.00017039]
[1766135388648,0.03115179,88062.0,88050.0,0.00017039]
[1766135388945,0.02543179,88061.0,88050.0,0.00017039]
[1766135389139,0.03679389,88060.0,88050.0,0.00017039]
[1766135389339,0.02543179,88059.0,88050.0,0.00017039]
[1766135389545,0.02543179,88058.0,88050.0,0.00017039]
[1766135389744,0.0113627,88056.0,88050.0,9e-08]
[1766135391642,0.00572,88055.0,88050.0,9e-08]
[1766135393151,0.00017039,88062.0,88050.0,9e-08]
[1766135393455,0.03114557,88061.0,88050.0,9e-08]
[1766135393645,0.02542557,88060.0,88050.0,9e-08]
[1766135393845,0.00572,88061.0,88050.0,9e-08]
[1766135394046,0.02542527,88060.0,88050.0,9e-08]
[1766135394246,0.00572,88061.0,88050.0,9e-08]
[1766135394447,0.02542626,88060.0,88050.0,9e-08]
[1766135394750,0.017082,88061.0,88050.0,9e-08]
[1766135395053,0.02542626,88060.0,88050.0,9e-08]
[1766135395238,0.017082,88061.0,88050.0,9e-08]
[1766135395443,0.02542688,88060.0,88050.0,9e-08]
[1766135395640,0.017082,88061.0,88050.0,9e-08]
[1766135395839,0.02542687,88060.0,88050.0,9e-08]
[1766135396146,0.017082,88061.0,88050.0,9e-08]
[1766135396346,0.0254275,88060.0,88050.0,9e-08]
[1766135396547,0.017082,88061.0,88050.0,9e-08]
[1766135396751,0.0254275,88060.0,88050.0,9e-08]
[1766135397051,0.017082,88061.0,88050.0,9e-08]
[1766135397250,0.0254275,88060.0,88050.0,9e-08]
[1766135397455,0.017082,88061.0,88050.0,9e-08]
[1766135397752,0.02542814,88060.0,88050.0,9e-08]
[1766135398054,0.02542814,88060.0,88018.0,8e-08]
[1766135398055,0.29054007,88060.0,88018.0,8e-08]
[1766135398253,0.0113642,88044.0,88020.0,0.29054007]
[1766135398442,0.0113645,88042.0,88020.0,0.29054007]
[1766135398644,0.0113649,88038.0,88018.0,8e-08]
[1766135398841,0.0113649,88038.0,88019.0,0.0170873]
[1766135399247,0.00017039,88037.0,88020.0,0.00017039]
[1766135400759,0.01153559,88037.0,88020.0,0.00017039]
[1766135401958,0.01136,88076.0,88027.0,0.29054007]
[1766135402156,0.0113618,88062.0,88028.0,0.00572]
[1766135402353,0.02542979,88061.0,88044.0,0.011364]
[1766135402556,0.00572,88064.0,88044.0,0.011364]
[1766135402754,0.02542879,88063.0,88044.0,0.011364]
[1766135403058,0.02542879,88062.0,88045.0,0.00017039]
[1766135403261,0.011362,88061.0,88045.0,0.00017039]
[1766135403459,0.0113623,88058.0,88045.0,0.00017039]
[1766135403660,0.00572,88057.0,88045.0,0.00017039]
[1766135404860,0.0113626,88056.0,88045.0,0.00017039]
[1766135406363,0.0113626,88056.0,88045.0,3.9e-07]
[1766135406952,0.0113634,88050.0,88045.0,3.9e-07]
[1766135408261,0.00572,88051.0,88045.0,3.9e-07]
[1766135423566,0.0113638,88047.0,88045.0,3.9e-07]
[1766135423973,0.00572,88051.0,88045.0,3.9e-07]
[1766135424178,0.02543276,88050.0,88045.0,3.9e-07]
[1766135424379,0.00572,88051.0,88045.0,3.9e-07]
[1766135428886,0.0113633,88050.0,88045.0,3.9e-07]
[1766135430090,0.00572,88051.0,88045.0,3.9e-07]
[1766135430392,0.0113637,88047.0,88045.0,3.9e-07]
[1766135430586,0.00572,88051.0,88025.0,2.38712]
[1766135430796,0.02543913,88050.0,88025.0,2.38828]
[1766135430985,0.02543913,88049.0,88025.0,2.38828]
[1766135431291,0.02543913,88048.0,88025.0,2.38828]
[1766135431493,0.02543913,88047.0,88025.0,2.38828]
[1766135431689,0.0113644,88043.0,88027.0,0.00017039]
[1766135431892,0.00572,88042.0,88027.0,0.00017039]
[1766135432194,0.0113646,88041.0,88027.0,0.00017039]
[1766135436497,0.0113646,88041.0,88025.0,0.00116]
[1766135437090,0.0113646,88041.0,88022.0,0.017087]
[1766135437596,0.0113646,88041.0,88023.0,0.00017039]
[1766135439494,0.00572,88042.0,88023.0,0.00017039]
[1766135440293,0.0113636,88048.0,88030.0,0.0113659]
[1766135440496,0.02836137,88047.0,88030.0,0.0113659]
[1766135440696,0.02544137,88046.0,88030.0,0.0113659]
[1766135441201,0.02544137,88046.0,88027.0,0.0113663]
[1766135442393,0.00292,88047.0,88027.0,0.0113663]
[1766135442599,0.0113639,88046.0,88027.0,0.0113663]
[1766135443603,0.0113645,88042.0,88023.0,0.01153709]
[1766135443906,0.0113639,88046.0,88027.0,0.0113663]
[1766135444095,0.0113643,88043.0,88024.0,0.0113667]
[1766135444607,0.0113646,88041.0,88024.0,0.0113667]
[1766135445706,0.0113646,88041.0,88023.0,0.00017039]
[1766135447396,0.0113649,88039.0,88023.0,0.00017039]
[1766135447598,0.0052,88038.0,88023.0,0.00017039]
[1766135448107,0.0052,88038.0,88023.0,0.01153709]
[1766135448807,0.00017039,88056.0,88023.0,0.01153709]
[1766135449012,0.00412,88051.0,88032.0,0.0113656]
[1766135449305,0.00412,88051.0,88035.0,0.0113652]
[1766135449909,0.02543981,88050.0,88028.0,0.29054007]
[1766135450094,0.00412,88051.0,88028.0,0.29054007]
[1766135450297,0.02544078,88050.0,88029.0,0.011366]
[1766135450603,0.00412,88051.0,88032.0,0.0113656]
[1766135450804,0.02544123,88050.0,88032.0,0.0113656]
[1766135451004,0.02544135,88049.0,88032.0,0.0113656]
[1766135451302,0.00412,88051.0,88032.0,0.0113656]
[1766135451502,0.02544251,88050.0,88032.0,0.0113656]
[1766135451702,0.02544251,88049.0,88032.0,0.0113656]
[1766135451909,0.00412,88051.0,88032.0,0.0113656]
[1766135452098,0.00412,88051.0,88028.0,0.29054007]
[1766135452099,0.0113636,88049.0,88027.0,0.0113662]
[1766135452296,0.02544385,88048.0,88027.0,0.0113662]
[1766135452498,0.0113636,88049.0,88027.0,0.0113662]
[1766135452696,0.02544435,88048.0,88023.0,0.01153709]
[1766135452902,0.0254447,88047.0,88023.0,0.01153709]
[1766135453109,0.00412,88051.0,88023.0,0.01153709]
[1766135453309,0.02544554,88050.0,88023.0,0.01153709]
[1766135453608,0.02544554,88049.0,88023.0,0.01153709]
[1766135453802,0.02544554,88048.0,88023.0,0.01153709]
[1766135453992,0.02544554,88047.0,88023.0,0.01153709]
[1766135454197,0.00412,88051.0,88023.0,0.00017039]
[1766135454408,0.0113642,88044.0,88023.0,0.00017039]
[1766135454608,0.0113642,88044.0,88024.0,0.0113667]
[1766135456312,0.0113639,88046.0,88027.0,0.0113663]
[1766135456514,0.00412,88051.0,88032.0,0.0113657]
[1766135456712,0.02544943,88050.0,88032.0,0.0113657]
[1766135456912,0.02544943,88049.0,88032.0,0.0113657]
[1766135457098,0.02544943,88048.0,88032.0,0.0113657]
[1766135457304,0.00412,88051.0,88032.0,0.0113657]
[1766135457608,0.02545053,88050.0,88032.0,0.0113657]
[1766135457808,0.02545053,88049.0,88033.0,0.0113655]
[1766135458111,0.03117053,88048.0,88030.0,0.29062156]
[1766135458306,0.00572,88048.0,88030.0,0.29062156]
[1766135460307,0.00572,88048.0,88030.0,0.0113658]
[1766135460808,0.02545807,88047.0,88030.0,0.30198736]
[1766135461010,0.0113642,88044.0,88028.0,0.00572]
[1766135461411,0.0113642,88044.0,88030.0,0.29062156]
[1766135461626,0.0170837,88048.0,88030.0,0.29062156]
[1766135461813,0.02545872,88047.0,88028.0,0.00572]
[1766135462007,0.0170837,88048.0,88028.0,0.00572]
[1766135462212,0.0254585,88047.0,88028.0,0.00572]
[1766135462511,0.0170837,88048.0,88028.0,0.00572]
[1766135462703,0.02545869,88047.0,88028.0,0.00572]
[1766135462910,0.0170837,88048.0,88028.0,0.00572]
[1766135463216,0.0113639,88046.0,88030.0,0.29062156]
[1766135466012,0.0113639,88046.0,88028.0,0.00572]
[1766135467205,0.29062156,88040.0,88028.0,0.00572]
[1766135467409,0.0113643,88043.0,88028.0,0.00572]
[1766135467610,0.29062156,88040.0,88028.0,0.00572]
[1766135467817,0.29634156,88040.0,88028.0,0.00572]
[1766135468017,0.00572,88040.0,88028.0,0.00572]
[1766135468321,0.0170846,88040.0,88028.0,0.00572]
[1766135468517,0.30770616,88040.0,88023.0,0.00589039]
[1766135469214,0.29634156,88040.0,88023.0,0.00589039]
[1766135469517,0.0113651,88037.0,88023.0,0.00589039]
[1766135470623,0.011366,88030.0,88010.0,0.30198996]
[1766135470814,0.00572,88029.0,88014.0,0.0113679]
[1766135471114,0.0113632,88052.0,88017.0,0.0113676]
[1766135471115,0.00572,88028.0,88017.0,0.0113676]
[1766135471420,0.00572,88028.0,88016.0,0.0113677]
[1766135472613,0.00572,88028.0,88014.0,0.00017039]
[1766135473216,0.00572,88028.0,88002.0,2.38728]
[1766135473217,0.0113672,88020.0,87989.0,0.08153397]
[1766135473523,0.0113677,88017.0,87994.0,0.00572]
[1766135473715,0.02529187,88016.0,87994.0,0.00572]
[1766135474224,0.00017039,88014.0,87996.0,0.01154069]
[1766135474611,0.00017039,88014.0,88000.0,0.30199126]
[1766135478824,0.29062156,88020.0,88000.0,0.30199126]
[1766135479027,0.00572,88076.0,88042.0,0.0113643]
[1766135479324,0.29062156,88070.0,88043.0,0.00572]
[1766135479532,0.02521693,88069.0,88044.0,0.0113641]
[1766135479819,0.03093693,88068.0,88050.0,0.29062156]
[1766135480019,0.08167914,88108.0,88050.0,0.29062156]
[1766135480020,0.00017039,88065.0,88050.0,0.29062156]
[1766135481123,0.00017039,88065.0,88048.0,0.00017039]
[1766135481124,0.0113616,88064.0,88048.0,0.00017039]
[1766135481523,0.00227124,88058.0,88048.0,0.00017039]
[1766135482118,0.00227124,88058.0,88048.0,0.29079195]
[1766135483326,0.01363364,88058.0,88048.0,0.29079195]
[1766135483517,0.00227124,88058.0,88048.0,0.29079195]
[1766135484135,0.00227124,88058.0,88048.0,0.00017039]
[1766135484325,0.00227124,88058.0,88048.0,0.29079195]
[1766135485522,0.00017039,88065.0,88049.0,0.0113635]
[1766135485723,0.0016,88064.0,88050.0,0.29062156]
[1766135485928,0.00088,88064.0,88056.0,0.0113626]
[1766135486128,3.9e-07,88065.0,88056.0,0.0113626]
[1766135486718,3.9e-07,88065.0,88055.0,0.29062156]
[1766135489029,3.9e-07,88065.0,88052.0,0.0170431]
[1766135489224,3.9e-07,88065.0,88055.0,0.29062156]
[1766135495231,3.9e-07,88065.0,88055.0,0.30198426]
[1766135495433,3.9e-07,88065.0,88055.0,0.29062156]
[1766135496229,3.9e-07,88065.0,88056.0,0.0113626]
[1766135496646,3.9e-07,88065.0,88061.0,0.0113618]
[1766135496834,2.38696,88090.0,88070.0,0.29062156]
[1766135497136,0.02442365,88089.0,88070.0,0.29062156]
[1766135497332,0.00568,88088.0,88080.0,0.29062156]
[1766135497641,0.00568,88087.0,88068.0,0.00568]
[1766135497933,0.00585029,88087.0,88070.0,0.29062156]
[1766135498339,0.00585029,88087.0,88071.0,0.0113606]
[1766135498727,0.00444,88086.0,88077.0,0.29062156]
[1766135499036,0.00465029,88087.0,88077.0,0.29062156]
[1766135500238,0.00017029,88087.0,88077.0,0.29062156]
[1766135500648,0.00017029,88087.0,88071.0,0.00568]
[1766135501233,0.0113591,88083.0,88071.0,0.00568]
[1766135502428,0.0113595,88080.0,88070.0,0.00568]
[1766135502626,0.00017029,88087.0,88070.0,0.29630156]
[1766135502833,0.0113587,88086.0,88058.0,2.38668]
[1766135503033,0.0113597,88079.0,88060.0,0.29062156]
[1766135503238,0.00017029,88087.0,88060.0,0.29062156]
[1766135503239,0.0113601,88076.0,88060.0,0.29062156]
[1766135503936,0.0170395,88080.0,88060.0,0.29062156]
[1766135505339,0.0113602,88075.0,88060.0,0.29062156]
[1766135505535,0.00568,88080.0,88060.0,0.29062156]
[1766135506550,0.00568,88080.0,88059.0,0.00585029]
[1766135506846,0.00568,88080.0,88060.0,0.29062156]
[1766135507241,0.0113606,88072.0,88059.0,0.00585029]
[1766135507439,0.0113606,88072.0,88060.0,0.29062156]
[1766135507842,0.0113611,88068.0,88059.0,0.00017029]
[1766135508749,0.00568,88070.0,88059.0,0.00017029]
[1766135512955,0.0113609,88069.0,88059.0,0.00017029]
[1766135513258,0.0113609,88069.0,88050.0,0.29062156]
[1766135513259,0.0113617,88064.0,88050.0,0.29062156]
[1766135513554,0.29630156,88070.0,88050.0,0.29630156]
[1766135513853,0.00568,88070.0,88050.0,0.29630156]
[1766135514158,0.00017029,88069.0,88051.0,0.00017029]
[1766135514754,0.0113625,88057.0,88051.0,9e-08]
[1766135514950,0.00084,88056.0,88040.0,0.29062156]
[1766135515139,0.00568,88055.0,88040.0,0.29062156]
[1766135516347,0.00568,88055.0,88041.0,0.00568]
[1766135517147,0.0113633,88051.0,88039.0,0.00017029]
[1766135517347,0.011364,88046.0,88030.0,0.001]
[1766135517548,0.017044,88046.0,88030.0,0.29162156]
[1766135518948,0.0113644,88042.0,88030.0,0.29162156]
[1766135519460,0.0113644,88042.0,88029.0,0.00011328]
[1766135519663,0.0113654,88035.0,88020.0,8.059e-05]
[1766135519957,0.011366,88030.0,88020.0,8.059e-05]
[1766135520154,0.00568,88029.0,88020.0,8.059e-05]
[1766135522160,0.0113649,88039.0,88020.0,8.059e-05]
[1766135522463,0.0028,88038.0,88020.0,8.059e-05]
[1766135524754,0.0028,88038.0,88020.0,0.29076534]
[1766135525156,0.0113651,88037.0,88020.0,0.29076534]
[1766135526968,0.0113651,88037.0,88020.0,8.059e-05]
[1766135529178,0.0028,88038.0,88020.0,8.059e-05]
[1766135529963,0.0028,88038.0,88020.0,0.29076534]
[1766135531765,0.0028,88038.0,88028.0,0.29068475]
[1766135531964,0.0028,88038.0,88021.0,0.011367]
[1766135532565,0.0113644,88042.0,88021.0,0.011367]
[1766135532876,0.00364,88041.0,88030.0,0.29068475]
[1766135533268,0.00364,88041.0,88025.0,0.00572]
[1766135533577,0.0113659,88031.0,88022.0,0.00572]
[1766135533777,0.0113659,88031.0,88020.0,8.059e-05]
[1766135534074,0.00364,88041.0,88020.0,8.059e-05]
[1766135534461,0.0113661,88030.0,88020.0,8.059e-05]
[1766135537378,0.0113663,88027.0,88020.0,8.059e-05]
[1766135538577,0.0113659,88031.0,88020.0,8.059e-05]
[1766135539879,0.0170857,88032.0,88020.0,8.059e-05]
[1766135540764,0.00572,88032.0,88020.0,8.059e-05]
[1766135541568,0.0113658,88031.0,88020.0,8.059e-05]
[1766135541771,0.0113658,88031.0,88010.0,0.29068475]
[1766135541772,0.00572,88032.0,88004.0,0.00572]
[1766135541971,0.00017039,88027.0,88005.0,0.00572]
[1766135542175,0.0113672,88021.0,88005.0,0.00572]
[1766135542576,0.0113669,88023.0,88005.0,0.00572]
[1766135542880,8.059e-05,88020.0,88005.0,0.00572]
[1766135543070,8.059e-05,88020.0,88005.0,0.017089]
[1766135543270,8.059e-05,88020.0,88011.0,0.0113684]
[1766135543472,5.9e-07,88020.0,88011.0,0.0113684]
[1766135543672,0.00017039,88027.0,88011.0,0.0113684]
[1766135543986,0.00248,88026.0,88011.0,0.0113684]
[1766135544977,0.00248,88026.0,88010.0,0.29068475]
[1766135545189,0.00248,88026.0,88013.0,0.011368]
[1766135545970,0.00017039,88027.0,88011.0,0.00572]
[1766135546285,0.00284,88029.0,88020.0,0.0113672]
[1766135546887,0.00292,88032.0,88020.0,0.0113672]
[1766135547083,0.06095718,88057.0,88024.0,0.0113666]
[1766135547388,3.9e-07,88035.0,88027.0,0.0113662]
[1766135547574,2.3876,88056.0,88027.0,0.0113662]
[1766135547774,0.0113638,88047.0,88027.0,0.0113662]
[1766135547984,0.03020405,88046.0,88027.0,0.0113662]
[1766135548183,0.02448405,88045.0,88027.0,0.0113662]
[1766135548386,0.02465444,88045.0,88027.0,0.01153659]
[1766135548580,0.02448405,88044.0,88027.0,0.01153659]
[1766135548972,0.00572,88043.0,88030.0,0.29068475]
[1766135549382,3.9e-07,88045.0,88031.0,0.0170858]
[1766135549975,3.9e-07,88045.0,88031.0,0.00572]
[1766135550180,3.9e-07,88045.0,88035.0,0.0113652]
[1766135551579,3.9e-07,88045.0,88034.0,0.0113653]
[1766135555491,3.9e-07,88045.0,88037.0,0.011365]
[1766135555687,3.9e-07,88045.0,88037.0,0.017085]
[1766135555891,3.9e-07,88045.0,88037.0,0.00572]
[1766135559976,3.9e-07,88045.0,88038.0,0.0113649]
[1766135561291,3.9e-07,88045.0,88037.0,0.00572]
[1766135562480,3.9e-07,88045.0,88028.0,0.00436]
[1766135562481,0.0113642,88044.0,88028.0,0.00436]
[1766135564895,3.9e-07,88045.0,88028.0,0.00436]
[1766135565491,0.0113644,88043.0,88028.0,0.00436]
[1766135566597,0.0113644,88043.0,88027.0,0.00017039]
[1766135566988,0.00568,88042.0,88027.0,0.00017039]
[1766135571093,0.0113649,88038.0,88027.0,9e-08]
[1766135571301,0.00568,88042.0,88027.0,9e-08]
[1766135571498,0.0113659,88031.0,88027.0,9e-08]
[1766135572108,0.0113662,88028.0,88027.0,9e-08]
[1766135572404,0.0113666,88025.0,88014.0,0.00568]
[1766135574103,0.0113666,88025.0,88011.0,0.00017039]
[1766135576111,0.00017039,88027.0,88011.0,0.00017039]